fUSD/lending_fUSD_20250417
["ID","MTS","AMOUNT","RATE_DAILY","PERIOD"]
[358298399,1744901468607,-500.0,0.00580821,120]
[358298400,1744901468617,-500.0,0.00580821,120]
[358298401,1744901468627,-500.0,0.00580821,120]
[358298402,1744901468637,-500.0,0.00580821,120]
[358298403,1744901468647,-500.0,0.00580821,120]
[358298404,1744901468656,-500.0,0.00580821,120]
[358298405,1744901468666,-20000.0,0.00582987,120]
[358298406,1744901468676,-20000.0,0.0059,120]
[358298407,1744901468685,-500.0,0.0059178,120]
[358298408,1744901468695,-500.0,0.0059178,2]
[358298409,1744901468705,-500.0,0.0059178,120]
[358298410,1744901468715,-618.1,0.0059178,120]
[358298411,1744901468724,-500.0,0.0059178,120]
[358298412,1744901468733,-437.92876004,0.0059178,120]
[358298413,1744901468743,-500.0,0.0059178,120]
[358298414,1744901468753,-500.0,0.0059178,120]
[358298415,1744901468763,-500.0,0.0059178,120]
[358298416,1744901468772,-500.0,0.0059178,120]
[358298417,1744901468781,-500.0,0.0059178,120]
[358298418,1744901468791,-500.0,0.0059178,120]
[358298419,1744901468800,-500.0,0.0059178,120]
[358298420,1744901468810,-500.0,0.0059178,120]
[358298421,1744901468820,-500.0,0.0059178,120]
[358298422,1744901468830,-502.94,0.0059178,120]
[358298423,1744901468839,-157.11784083,0.0059178,120]
[358298424,1744901468849,-500.0,0.0059178,120]
[358298425,1744901468859,-500.0,0.0059178,120]
[358298426,1744901468869,-586.34,0.0059178,120]
[358298427,1744901468879,-312.29367171,0.0059178,120]
[358298428,1744901468889,-500.0,0.0059178,120]
[358298429,1744901468899,-500.0,0.0059178,120]
[358298430,1744901468909,-282.78264585,0.0059178,120]
[358298431,1744901468920,-500.0,0.0059178,120]
[358298432,1744901468931,-500.0,0.0059178,120]
[358298433,1744901468940,-500.0,0.0059178,120]
[358298434,1744901468951,-500.0,0.0059178,120]
[358298435,1744901468961,-500.0,0.0059178,120]
[358298436,1744901468971,-500.0,0.0059178,120]
[358298437,1744901468981,-500.0,0.0059178,120]
[358298438,1744901468991,-500.0,0.0059178,120]
[358298439,1744901469001,-500.0,0.0059178,120]
[358298440,1744901469013,-500.0,0.0059178,120]
[358298441,1744901469023,-500.0,0.0059178,120]
[358298442,1744901469034,-500.0,0.0059178,120]
[358298443,1744901469045,-500.0,0.0059178,30]
[358298444,1744901469056,-500.0,0.0059178,120]
[358298445,1744901469066,-616.03,0.0059178,120]
[358298446,1744901469145,-583.06,0.0059178,120]
[358298447,1744901469156,-571.57,0.0059178,120]
[358298448,1744901469167,-500.0,0.0059178,120]
[358298449,1744901469177,-2352.51,0.0059178,120]
[358298450,1744901469187,-500.0,0.0059178,120]
[358298451,1744901469198,-500.0,0.0059178,120]
[358298452,1744901469210,-500.0,0.0059178,120]
[358298453,1744901469221,-500.0,0.0059178,120]
[358298454,1744901469231,-500.0,0.0059178,120]
[358298455,1744901469243,-500.0,0.0059178,120]
[358298456,1744901469253,-500.0,0.0059178,120]
[358298457,1744901469267,-601.57228899,0.0059178,120]
[358298458,1744901469277,-500.0,0.0059178,120]
[358298459,1744901469288,-500.0,0.0059178,120]
[358298460,1744901469298,-500.0,0.0059178,120]
[358298461,1744901469308,-500.0,0.0059178,120]
[358298462,1744901469318,-500.0,0.0059178,120]
[358298463,1744901469328,-500.0,0.0059178,120]
[358298464,1744901469339,-500.0,0.0059178,120]
[358298465,1744901469349,-500.0,0.0059178,120]
[358298466,1744901469359,-500.0,0.0059178,120]
[358298467,1744901469369,-500.0,0.0059178,120]
[358298468,1744901469379,-500.0,0.0059178,120]
[358298469,1744901469389,-500.0,0.0059178,120]
[358298470,1744901469400,-175.74,0.0059178,120]
[358298471,1744901469409,-500.0,0.0059178,120]
[358298472,1744901469419,-500.0,0.0059178,120]
[358298473,1744901469428,-500.0,0.0059178,120]
[358298474,1744901469438,-500.0,0.0059178,120]
[358298475,1744901469448,-500.0,0.0059178,120]
[358298476,1744901469458,-217.20616563,0.0059178,120]
[358298477,1744901469467,-500.0,0.0059178,120]
[358298478,1744901469477,-22827.95652145,0.00592211,120]
[358298479,1744901469487,-498600.0,0.00598,120]
[358298480,1744901469497,-50000.0,0.006,2]
[358298481,1744901469507,-20000.0,0.006,120]
[358298482,1744901469520,-20000.0,0.006,120]
[358298483,1744901469530,-200000.0,0.006,120]
[358298484,1744901469540,-1000.0,0.006,120]
[358298485,1744901469550,-1540.02267167,0.006,120]
[358298486,1744901469560,-500.0,0.00602739,120]
[358298487,1744901469569,-500.0,0.00602739,2]
[358298488,1744901469579,-500.0,0.00602739,120]
[358298489,1744901469588,-616.9,0.00602739,120]
[358298490,1744901469598,-225.61249254,0.00602739,120]
[358298491,1744901469607,-500.0,0.00602739,120]
[358298492,1744901469617,-500.0,0.00602739,120]
[358298493,1744901469635,-416.07465805,0.00602739,120]
[358298494,1744901469653,-500.0,0.00602739,120]
[358298495,1744901469675,-492.0,0.00602739,120]
[358298496,1744901469696,-500.0,0.00602739,120]
[358298497,1744901469712,-500.0,0.00602739,120]
[358298498,1744901469732,-500.0,0.00602739,120]
[358298499,1744901469752,-500.0,0.00602739,120]
[358298500,1744901469774,-500.0,0.00602739,120]
[358298501,1744901469793,-500.0,0.00602739,120]
[358298502,1744901469812,-500.0,0.00602739,120]
[358298503,1744901469832,-500.0,0.00602739,120]
[358298504,1744901469847,-500.0,0.00602739,120]
[358298505,1744901469868,-153.37,0.00602739,120]
[358298506,1744901469881,-522.6,0.00602739,120]
[358298507,1744901469899,-500.0,0.00602739,120]
[358298508,1744901469913,-500.0,0.00602739,120]
[358298509,1744901469928,-500.0,0.00602739,120]
[358298510,1744901469944,-463.88,0.00602739,120]
[358298511,1744901469960,-500.0,0.00602739,30]
[358298512,1744901469976,-196.66980924,0.00602739,120]
[358298513,1744901469993,-616.03,0.00602739,120]
[358298514,1744901470008,-583.06,0.00602739,120]
[358298515,1744901470025,-571.57,0.00602739,120]
[358298516,1744901470040,-500.0,0.00602739,120]
[358298517,1744901470055,-2352.51,0.00602739,120]
[358298518,1744901470070,-500.0,0.00602739,120]
[358298519,1744901470086,-500.0,0.00602739,120]
[358298520,1744901470102,-500.0,0.00602739,120]
[358298521,1744901470117,-630.51156713,0.00602739,120]
[358298522,1744901470133,-500.0,0.00602739,120]
[358298523,1744901470148,-500.0,0.00602739,120]
[358298524,1744901470164,-500.0,0.00602739,120]
[358298525,1744901470180,-500.0,0.00602739,120]
[358298526,1744901470197,-500.0,0.00602739,120]
[358298527,1744901470215,-500.0,0.00602739,120]
[358298528,1744901470230,-500.0,0.00602739,120]
[358298529,1744901470247,-500.0,0.00602739,120]
[358298530,1744901470265,-500.0,0.00602739,120]
[358298531,1744901470282,-500.0,0.00602739,120]
[358298532,1744901470298,-500.0,0.00602739,120]
[358298533,1744901470314,-500.0,0.00602739,120]
[358298534,1744901470331,-500.0,0.00602739,120]
[358298535,1744901470348,-500.0,0.00602739,120]
[358298536,1744901470362,-500.0,0.00602739,120]
[358298537,1744901470377,-500.0,0.00602739,120]
[358298538,1744901470391,-432.16,0.00602739,120]
[358298539,1744901470405,-500.0,0.00602739,120]
[358298540,1744901470510,-20000.0,0.00605,120]
[358298541,1744901470523,-20000.0,0.00612725,120]
[358298542,1744901470532,-500.0,0.00613698,120]
[358298543,1744901470543,-500.0,0.00613698,2]
[358298544,1744901470552,-500.0,0.00613698,120]
[358298545,1744901470562,-500.0,0.00613698,120]
[358298546,1744901470571,-500.0,0.00613698,120]
[358298547,1744901470581,-500.0,0.00613698,120]
[358298548,1744901470591,-500.0,0.00613698,120]
[358298549,1744901470600,-500.0,0.00613698,120]
[358298550,1744901470610,-500.0,0.00613698,120]
[358298551,1744901470619,-500.0,0.00613698,120]
[358298552,1744901470629,-570.51779091,0.00613698,120]
[358298553,1744901470639,-500.0,0.00613698,120]
[358298554,1744901470648,-500.0,0.00613698,120]
[358298555,1744901470658,-504.62367088,0.00613698,120]
[358298556,1744901470669,-500.0,0.00613698,30]
[358298557,1744901470679,-616.03,0.00613698,120]
[358298558,1744901470688,-583.06,0.00613698,120]
[358298559,1744901470698,-571.57,0.00613698,120]
[358298560,1744901470708,-500.0,0.00613698,120]
[358298561,1744901470718,-2352.51,0.00613698,120]
[358298562,1744901470727,-500.0,0.00613698,120]
[358298563,1744901470736,-505.57575609,0.00613698,120]
[358298564,1744901470746,-500.0,0.00613698,120]
[358298565,1744901470756,-500.0,0.00613698,120]
[358298566,1744901470767,-500.0,0.00613698,120]
[358298567,1744901470777,-500.0,0.00613698,120]
[358298568,1744901470787,-500.0,0.00613698,120]
[358298569,1744901470796,-500.0,0.00613698,120]
[358298570,1744901470806,-500.0,0.00613698,120]
[358298571,1744901470816,-500.0,0.00613698,120]
[358298572,1744901470826,-500.0,0.00613698,120]
[358298573,1744901470835,-463.23,0.00613698,120]
[358298574,1744901470844,-500.0,0.00613698,120]
[358298575,1744901470854,-500.0,0.00613698,120]
[358298576,1744901470864,-500.0,0.00613698,120]
[358298577,1744901470874,-500.0,0.00613698,120]
[358298578,1744901470884,-500.0,0.00613698,120]
[358298579,1744901470893,-500.0,0.00613698,120]
[358298580,1744901470903,-20000.0,0.00615,120]
[358298581,1744901470913,-20000.0,0.0062,120]
[358298582,1744901470924,-22827.95652145,0.00622211,120]
[358298583,1744901470934,-500.0,0.00624657,120]
[358298584,1744901470944,-500.0,0.00624657,2]
[358298585,1744901470954,-500.0,0.00624657,120]
[358298586,1744901470964,-370.00209265,0.00624657,120]
[358298587,1744901470973,-500.0,0.00624657,120]
[358298588,1744901470983,-500.0,0.00624657,120]
[358298589,1744901470993,-500.0,0.00624657,120]
[358298590,1744901471003,-500.0,0.00624657,120]
[358298591,1744901471015,-500.0,0.00624657,120]
[358298592,1744901471024,-156.77661114,0.00624657,120]
[358298593,1744901471034,-500.0,0.00624657,120]
[358298594,1744901471043,-401.79,0.00624657,30]
[358298595,1744901471053,-616.03,0.00624657,120]
[358298596,1744901471063,-583.06,0.00624657,120]
[358298597,1744901471073,-571.57,0.00624657,120]
[358298598,1744901471083,-500.0,0.00624657,120]
[358298599,1744901471092,-2352.51,0.00624657,120]
[358298600,1744901471103,-500.0,0.00624657,120]
[358298601,1744901471113,-500.0,0.00624657,120]
[358298602,1744901471124,-500.0,0.00624657,120]
[358298603,1744901471133,-500.0,0.00624657,120]
[358298604,1744901471143,-500.0,0.00624657,120]
[358298605,1744901471153,-500.0,0.00624657,120]
[358298606,1744901471163,-500.0,0.00624657,120]
[358298607,1744901471173,-500.0,0.00624657,120]
[358298608,1744901471183,-500.0,0.00624657,120]
[358298609,1744901471192,-500.0,0.00624657,120]
[358298610,1744901471203,-263.8,0.00624657,120]
[358298611,1744901471216,-500.0,0.00624657,120]
[358298612,1744901471225,-500.0,0.00624657,120]
[358298613,1744901471235,-500.0,0.00624657,120]
[358298614,1744901471246,-500.0,0.00624657,120]
[358298615,1744901471255,-20000.0,0.00625,120]
[358298616,1744901471265,-20000.0,0.00635,120]
[358298617,1744901471275,-500.0,0.00635616,120]
[358298618,1744901471287,-500.0,0.00635616,2]
[358298619,1744901471297,-479.8740075,0.00635616,120]
[358298620,1744901471306,-500.0,0.00635616,120]
[358298621,1744901471316,-500.0,0.00635616,120]
[358298622,1744901471326,-420.62617719,0.00635616,120]
[358298623,1744901471335,-500.0,0.00635616,120]
[358298624,1744901471345,-500.0,0.00635616,120]
[358298625,1744901471355,-500.0,0.00635616,120]
[358298626,1744901471364,-616.03,0.00635616,120]
[358298627,1744901471375,-583.06,0.00635616,120]
[358298628,1744901471385,-571.57,0.00635616,120]
[358298629,1744901471395,-500.0,0.00635616,120]
[358298630,1744901471405,-2352.51,0.00635616,120]
[358298631,1744901471415,-500.0,0.00635616,120]
[358298632,1744901471424,-500.0,0.00635616,120]
[358298633,1744901471433,-500.0,0.00635616,120]
[358298634,1744901471443,-500.0,0.00635616,120]
[358298635,1744901471452,-500.0,0.00635616,120]
[358298636,1744901471462,-500.0,0.00635616,120]
[358298637,1744901471471,-500.0,0.00635616,120]
[358298638,1744901471481,-500.0,0.00635616,120]
[358298639,1744901471490,-500.0,0.00635616,120]
[358298640,1744901471500,-500.0,0.00635616,120]
[358298641,1744901471509,-500.0,0.00635616,120]
[358298642,1744901471519,-500.0,0.00635616,120]
[358298643,1744901471528,-500.0,0.00635616,120]
[358298644,1744901471538,-150.0,0.00636806,120]
[358298645,1744901471548,-20000.0,0.0064,120]
[358298646,1744901471557,-23122.0,0.00643214,120]
[358298647,1744901471567,-20000.0,0.0064398,120]
[358298648,1744901471576,-20000.0,0.00645,120]
[358298649,1744901471587,-500.0,0.00646575,120]
[358298650,1744901471596,-500.0,0.00646575,2]
[358298651,1744901471606,-500.0,0.00646575,120]
[358298652,1744901471615,-500.0,0.00646575,120]
[358298653,1744901471625,-500.0,0.00646575,120]
[358298654,1744901471635,-500.0,0.00646575,120]
[358298655,1744901471644,-500.0,0.00646575,120]
[358298656,1744901471653,-616.03,0.00646575,120]
[358298657,1744901471663,-583.06,0.00646575,120]
[358298658,1744901471673,-571.57,0.00646575,120]
[358298659,1744901471682,-633.62510002,0.00646575,120]
[358298660,1744901471692,-2352.51,0.00646575,120]
[358298661,1744901471705,-500.0,0.00646575,120]
[358298662,1744901471715,-500.0,0.00646575,120]
[358298663,1744901471724,-292.11276859,0.00646575,120]
[358298664,1744901471734,-500.0,0.00646575,120]
[358298665,1744901471744,-500.0,0.00646575,120]
[358298666,1744901471754,-500.0,0.00646575,120]
[358298667,1744901471763,-500.0,0.00646575,120]
[358298668,1744901471851,-500.0,0.00646575,120]
[358298669,1744901471861,-500.0,0.00646575,120]
[358298670,1744901471871,-500.0,0.00646575,120]
[358298671,1744901471881,-500.0,0.00646575,120]
[358298672,1744901471891,-500.0,0.00646575,120]
[358298673,1744901471901,-500.0,0.00646575,120]
[358298674,1744901471911,-1148.02291425,0.0065,120]
[358298675,1744901471920,-500.0,0.00657534,120]
[358298676,1744901471930,-500.0,0.00657534,2]
[358298677,1744901471939,-500.0,0.00657534,120]
[358298678,1744901471949,-500.0,0.00657534,120]
[358298679,1744901471959,-375.93144762,0.00657534,120]
[358298680,1744901471968,-500.0,0.00657534,120]
[358298681,1744901471977,-500.0,0.00657534,120]
[358298682,1744901471987,-616.03,0.00657534,120]
[358298683,1744901471996,-583.06,0.00657534,120]
[358298684,1744901472006,-571.57,0.00657534,120]
[358298685,1744901472018,-2352.51,0.00657534,120]
[358298686,1744901472028,-500.0,0.00657534,120]
[358298687,1744901472037,-500.0,0.00657534,120]
[358298688,1744901472047,-500.0,0.00657534,120]
[358298689,1744901472057,-500.0,0.00657534,120]
[358298690,1744901472066,-500.0,0.00657534,120]
[358298691,1744901472076,-500.0,0.00657534,120]
[358298692,1744901472086,-500.0,0.00657534,120]
[358298693,1744901472096,-500.0,0.00657534,120]
[358298694,1744901472107,-205.8684775,0.00657534,120]
[358298695,1744901472116,-500.0,0.00657534,120]
[358298696,1744901472126,-500.0,0.00657534,120]
[358298697,1744901472136,-20000.0,0.0066,120]
[358298698,1744901472145,-23122.0,0.0066,120]
[358298699,1744901472155,-500.0,0.00668493,120]
[358298700,1744901472165,-500.0,0.00668493,2]
[358298701,1744901472175,-500.0,0.00668493,120]
[358298702,1744901472184,-493.07454583,0.00668493,120]
[358298703,1744901472194,-500.0,0.00668493,120]
[358298704,1744901472209,-500.0,0.00668493,120]
[358298705,1744901472218,-616.03,0.00668493,120]
[358298706,1744901472229,-583.06,0.00668493,120]
[358298707,1744901472238,-571.57,0.00668493,120]
[358298708,1744901472250,-2352.51,0.00668493,120]
[358298709,1744901472260,-500.0,0.00668493,120]
[358298710,1744901472272,-509.63032351,0.00668493,120]
[358298711,1744901472283,-500.0,0.00668493,120]
[358298712,1744901472294,-500.0,0.00668493,120]
[358298713,1744901472305,-500.0,0.00668493,120]
[358298714,1744901472315,-500.0,0.00668493,120]
[358298715,1744901472325,-500.0,0.00668493,120]
[358298716,1744901472335,-500.0,0.00668493,120]
[358298717,1744901472345,-500.0,0.00668493,120]
[358298718,1744901472356,-150.0,0.00676574,120]
[358298719,1744901472365,-20000.0,0.00676829,120]
[358298720,1744901472376,-500.0,0.00679452,120]
[358298721,1744901472385,-500.0,0.00679452,2]
[358298722,1744901472395,-500.0,0.00679452,120]
[358298723,1744901472405,-500.0,0.00679452,120]
[358298724,1744901472416,-500.0,0.00679452,120]
[358298725,1744901472425,-616.03,0.00679452,120]
[358298726,1744901472435,-583.06,0.00679452,120]
[358298727,1744901472444,-571.57,0.00679452,120]
[358298728,1744901472454,-2352.51,0.00679452,120]
[358298729,1744901472463,-500.0,0.00679452,120]
[358298730,1744901472473,-500.0,0.00679452,120]
[358298731,1744901472482,-500.0,0.00679452,120]
[358298732,1744901472492,-500.0,0.00679452,120]
[358298733,1744901472502,-500.0,0.00679452,120]
[358298734,1744901472511,-500.0,0.00679452,120]
[358298735,1744901472523,-500.0,0.00679452,120]
[358298736,1744901472532,-500.0,0.00679452,120]
[358298737,1744901472541,-20000.0,0.0068,120]
[358298738,1744901472550,-666.0,0.00684931,120]
[358298739,1744901472560,-666.0,0.00684931,120]
[358298740,1744901472569,-666.0,0.00684931,120]
[358298741,1744901472579,-666.0,0.00684931,120]
[358298742,1744901472588,-666.0,0.00684931,120]
[358298743,1744901472598,-666.0,0.00684931,120]
[358298744,1744901472607,-666.0,0.00684931,120]
[358298745,1744901472616,-666.0,0.00684931,120]
[358298746,1744901472625,-666.0,0.00684931,120]
[358298747,1744901472634,-666.0,0.00684931,120]
[358298748,1744901472644,-666.0,0.00684931,120]
[358298749,1744901472654,-666.0,0.00684931,120]
[358298750,1744901472663,-666.0,0.00684931,120]
[358298751,1744901472673,-666.0,0.00684931,120]
[358298752,1744901472683,-666.0,0.00684931,120]
[358298753,1744901472692,-666.0,0.00684931,120]
[358298754,1744901472702,-666.0,0.00684931,120]
[358298755,1744901472711,-666.0,0.00684931,120]
[358298756,1744901472720,-666.0,0.00684931,120]
[358298757,1744901472730,-666.0,0.00684931,120]
[358298758,1744901472739,-464.4428555,0.00684931,120]
[358298759,1744901472750,-484.4072,0.0069041,120]
[358298760,1744901472760,-500.0,0.0069041,2]
[358298761,1744901472770,-500.0,0.0069041,120]
[358298762,1744901472780,-359.35,0.0069041,120]
[358298763,1744901472790,-269.6,0.0069041,120]
[358298764,1744901472800,-616.03,0.0069041,120]
[358298765,1744901472811,-583.06,0.0069041,120]
[358298766,1744901472820,-571.57,0.0069041,120]
[358298767,1744901472830,-2352.51,0.0069041,120]
[358298768,1744901472839,-500.0,0.0069041,120]
[358298769,1744901472848,-500.0,0.0069041,120]
[358298770,1744901472858,-500.0,0.0069041,120]
[358298771,1744901472868,-344.59946219,0.0069041,120]
[358298772,1744901472878,-500.0,0.0069041,120]
[358298773,1744901472887,-500.0,0.0069041,120]
[358298774,1744901472896,-500.0,0.0069041,120]
[358298775,1744901472906,-500.0,0.0069041,120]
[358298776,1744901472915,-150.0,0.00695205,120]
[358298777,1744901472925,-399039.97287637,0.006998,120]
[358298778,1744901472934,-20000.0,0.006999,120]
[358298779,1744901472943,-50000.0,0.007,2]
[358298780,1744901472952,-500.0,0.007,30]
[358298781,1744901472962,-500.0,0.007,30]
[358298782,1744901472971,-8376.71299903,0.007,120]
[358298783,1744901472980,-20000.0,0.007,120]
[358298784,1744901472990,-1000.0,0.007,120]
[358298785,1744901472999,-383.0,0.007,120]
[358298786,1744901473079,-500.0,0.00701369,2]
[358298787,1744901473089,-500.0,0.00701369,120]
[358298788,1744901473099,-616.03,0.00701369,120]
[358298789,1744901473109,-583.06,0.00701369,120]
[358298790,1744901473118,-571.57,0.00701369,120]
[358298791,1744901473128,-2352.51,0.00701369,120]
[358298792,1744901473138,-500.0,0.00701369,120]
[358298793,1744901473148,-500.0,0.00701369,120]
[358298794,1744901473157,-500.0,0.00701369,120]
[358298795,1744901473167,-455.17737404,0.00701369,120]
[358298796,1744901473177,-500.0,0.00701369,120]
[358298797,1744901473186,-500.0,0.00701369,120]
[358298798,1744901473195,-500.0,0.00701369,120]
[358298799,1744901473206,-20000.0,0.0071,120]
[358298800,1744901473216,-29615.24,0.0071,120]
[358298801,1744901473226,-200.00491743,0.00710504,120]
[358298802,1744901473235,-150.0,0.00710504,120]
[358298803,1744901473244,-150.0,0.00710504,120]
[358298804,1744901473255,-150.0,0.00710504,120]
[358298805,1744901473264,-150.0,0.00710504,120]
[358298806,1744901473274,-150.0,0.00710504,120]
[358298807,1744901473284,-150.0,0.00710504,120]
[358298808,1744901473294,-23122.0,0.00711,120]
[358298809,1744901473303,-200.00491743,0.00711302,120]
[358298810,1744901473313,-20000.0,0.00711354,120]
[358298811,1744901473322,-150.0,0.00711798,120]
[358298812,1744901473332,-200.00491743,0.00712099,120]
[358298813,1744901473341,-150.0,0.00712184,120]
[358298814,1744901473351,-239.76970944,0.00712328,2]
[358298815,1744901473360,-500.0,0.00712328,120]
[358298816,1744901473369,-616.03,0.00712328,120]
[358298817,1744901473380,-583.06,0.00712328,120]
[358298818,1744901473390,-571.57,0.00712328,120]
[358298819,1744901473401,-2352.51,0.00712328,120]
[358298820,1744901473411,-500.0,0.00712328,120]
[358298821,1744901473420,-500.0,0.00712328,120]
[358298822,1744901473430,-500.0,0.00712328,120]
[358298823,1744901473439,-500.0,0.00712328,120]
[358298824,1744901473449,-500.0,0.00712328,120]
[358298825,1744901473458,-420.64920841,0.00712328,120]
[358298826,1744901473467,-200.00491743,0.00712896,120]
[358298827,1744901473476,-150.0,0.00713092,120]
[358298828,1744901473486,-200.00491743,0.00713694,120]
[358298829,1744901473496,-150.0,0.00713863,120]
[358298830,1744901473505,-150.0,0.00713936,120]
[358298831,1744901473515,-150.0,0.00714387,120]
[358298832,1744901473526,-200.00491743,0.00714491,120]
[358298833,1744901473535,-200.00491743,0.00715289,120]
[358298834,1744901473544,-150.0,0.00715543,120]
[358298835,1744901473554,-150.0,0.00715681,120]
[358298836,1744901473563,-200.00491743,0.00716086,120]
[358298837,1744901473573,-200.00491743,0.00716883,120]
[358298838,1744901473583,-150.0,0.00716975,120]
[358298839,1744901473593,-150.0,0.00717223,120]
[358298840,1744901473602,-150.0,0.00717369,120]
[358298841,1744901473612,-200.00491743,0.00717681,120]
[358298842,1744901473622,-150.0,0.00718269,120]
[358298843,1744901473632,-200.00491743,0.00718478,120]
[358298844,1744901473642,-150.0,0.00718902,120]
[358298845,1744901473652,-200.00491743,0.00719276,120]
[358298846,1744901473662,-150.0,0.00719563,120]
[358298847,1744901473672,-150.0,0.0072,120]
[358298848,1744901473682,-200.00491743,0.00720073,120]
[358298849,1744901473692,-150.0,0.00720582,120]
[358298850,1744901473702,-150.0,0.00720801,120]
[358298851,1744901473712,-150.0,0.00720858,120]
[358298852,1744901473722,-200.00491743,0.00720871,120]
[358298853,1744901473734,-99730.14000001,0.0072132,120]
[358298854,1744901473743,-200.00491743,0.00721668,120]
[358298855,1744901473752,-150.0,0.00722152,120]
[358298856,1744901473762,-150.0,0.00722262,120]
[358298857,1744901473774,-200.00491743,0.00722465,120]
[358298858,1744901473783,-200.00491743,0.00723263,120]
[358298859,1744901473793,-500.0,0.00723287,120]
[358298860,1744901473803,-616.03,0.00723287,120]
[358298861,1744901473812,-583.06,0.00723287,120]
[358298862,1744901473822,-571.57,0.00723287,120]
[358298863,1744901473831,-2352.51,0.00723287,120]
[358298864,1744901473841,-500.0,0.00723287,120]
[358298865,1744901473851,-500.0,0.00723287,120]
[358298866,1744901473860,-500.0,0.00723287,120]
[358298867,1744901473870,-500.0,0.00723287,120]
[358298868,1744901473879,-500.0,0.00723287,120]
[358298869,1744901473888,-150.0,0.00723446,120]
[358298870,1744901473898,-150.0,0.00723942,120]
[358298871,1744901473907,-200.00491743,0.0072406,120]
[358298872,1744901473916,-150.0,0.00724234,120]
[358298873,1744901473926,-150.0,0.0072474,120]
[358298874,1744901473936,-200.00491743,0.00724858,120]
[358298875,1744901473946,-5255.283697,0.00725,120]
[358298876,1744901473956,-150.0,0.00725621,120]
[358298877,1744901473965,-200.00491743,0.00725655,120]
[358298878,1744901473975,-150.0,0.00726034,120]
[358298879,1744901473985,-200.00491743,0.00726453,120]
[358298880,1744901473995,-200.00491743,0.0072725,120]
[358298881,1744901474004,-150.0,0.00727301,120]
[358298882,1744901474013,-150.0,0.00727328,120]
[358298883,1744901474023,-150.0,0.00727666,120]
[358298884,1744901474032,-200.00491743,0.00728047,120]
[358298885,1744901474042,-400.0,0.0072807,120]
[358298886,1744901474052,-150.0,0.00728623,120]
[358298887,1744901474062,-200.00491743,0.00728845,120]
[358298888,1744901474072,-150.0,0.00728981,120]
[358298889,1744901474083,-200.00491743,0.00729642,120]
[358298890,1744901474092,-150.0,0.00729917,120]
[358298891,1744901474102,-20000.0,0.0073,120]
[358298892,1744901474112,-200.00491743,0.0073044,120]
[358298893,1744901474122,-150.0,0.0073066,120]
[358298894,1744901474196,-150.0,0.00731098,120]
[358298895,1744901474207,-150.0,0.00731211,120]
[358298896,1744901474218,-200.00491743,0.00731237,120]
[358298897,1744901474228,-200.00491743,0.00732035,120]
[358298898,1744901474238,-150.0,0.0073234,120]